[Event "93rd German Championship 2022"]
[Site "Magdeburg"]
[Date "2022.08.18"]
[Round "7.13"]
[White "Boder, Jan"]
[Black "Keller, Peter"]
[Result "1/2-1/2"]
[ECO "A00"]
[WhiteElo "2315"]
[BlackElo "2377"]
[Annotator "TA"]
[PlyCount "155"]
[EventDate "2022.08.14"]
[EventType "swiss"]
[EventCountry "GER"]
[SourceTitle "playchess.com"]
[Source "ChessBase"]
[SourceQuality "1"]
[TimeControl "40/5400+30:1800+30"]

{[%evp 9,155,0,21,17,24,-2,22,10,11,10,8,13,15,0,0,-5,-8,-19,-22,-40,-37,-36,-25,-34,-13,-13,-7,-13,0,0,0,-8,0,-155,0,0,0,0,0,0,0,0,0,-14,-18,-7,-11,-18,0,-19,0,0,0,0,0,0,67,86,329,0,39,0,327,0,0,0,0,0,0,0,0,0,0,0,0,0,0,0,0,0,0,0,0,0,0,0,0,0,0,0,0,0,0,0,0,0,0,0,0,-17,-17,-17,-17,-17,-17,-17,0,0,0,0,0,0,0,0,0,0,0,0,0,0,0,0,0,0,0,0,0,0,0,0,0,0,0,0,0,0,0,0,0,0,0,0,0,0,0,0,0,0]} 1. g3 Nf6 {[%emt 0:00:34]} 2. d4 {[%emt 0:01:33]} e6 {[%emt 0:01:07]} 3. c4 {[%emt 0:00:50]} d5 {[%emt 0:01:59]} 4. Nf3 {[%emt 0:01:54]} Bb4+ {[%emt 0:02:27]} 5. Bd2 {[%emt 0:06:58]} Bd6 {[%emt 0:00:09]} 6. Bg2 {[%emt 0:00:46] E01: Catalan: Early deviations.} O-O {[%emt 0:00:21]} 7. Nc3 {[%emt 0:02:01]} c6 {[%emt 0:00:19]} 8. Qc2 {[%emt 0:02:21]} Nbd7 {[%emt 0:00:33]} 9. e4 {[%emt 0:07:55]} Nxe4 {[%emt 0:00:42]} 10. Nxe4 {[%emt 0:00:15]} dxe4 {[%emt 0:00:04]} 11. Qxe4 {[%emt 0:00:14]} e5 {[%emt 0:18:14][%cal Be6e5,Be5e4][%mdl 32]} 12. O-O {[%emt 0:08:20]} (12. Nxe5 Nxe5 13. dxe5 Bxe5 $1 $15) 12... Nf6 {[%emt 0:15:42]} 13. Qh4 {[%emt 0:10:43] [#]} e4 $146 {[%emt 0:09:24]} ({Predecessor:} 13... exd4 14. Nxd4 Be5 15. Bc3 Ng4 16. Qxd8 Rxd8 17. Rad1 Bxd4 18. Bxd4 Be6 19. b3 Nf6 20. Bxa7 Rxd1 21. Rxd1 {0-1 (45) Matviishen,V (2476)-Bolourchifard,F (2240) Chess.com INT 2018}) 14. Ng5 {[%emt 0:01:17]} Bf5 {[%emt 0:27:21]} 15. Rae1 {[%emt 0:16:28]} Re8 {[%emt 0:00:14] ...h6 is the strong threat.} 16. f3 $1 {[%emt 0:00:23][%cal Rf3e4]} Bc5 {[%emt 0:07:06]} 17. dxc5 {[%emt 0:07:41]} Qxd2 {[%emt 0:00:05]} 18. fxe4 {[%emt 0:00:06] Strongly threatening Nf3. The board is on fire.} Qd4+ {[%emt 0:04:17]} 19. Kh1 {[%emt 0:00:31]} Bg6 {[%emt 0:00:21]} 20. e5 $1 {[%emt 0:07:43]} Ng4 {[%emt 0:03:47] Threatens to win with ...Nf2+.} 21. Ne4 {[%emt 0:08:53] [#] Prevents Nf2+.} (21. e6 $11 fxe6 22. Nf3 (22. Rxe6 $2 Rxe6 23. Nf3 Qxc4 $19) (22. Nxe6 $2 Nf2+ 23. Rxf2 Qxf2 $19) 22... Nf2+ 23. Kg1 Nh3+ 24. Kh1 Nf2+ 25. Kg1 Nh3+ 26. Kh1 Nf2+) 21... Bxe4 $2 {[%emt 0:02:12]} (21... f5 $1 $17 22. h3 fxe4 23. Qxg4 Rxe5) 22. Bxe4 $11 {[%emt 0:00:01]} Nf2+ {[%emt 0:00:10]} 23. Kg2 $1 {[%emt 0:01:47]} Nxe4 {[%emt 0:00:05]} 24. Rxe4 {[%emt 0:00:07]} Qxb2+ {[%emt 0:01:33]} 25. Rf2 {[%emt 0:00:10]} Qc3 {[%emt 0:01:20]} 26. Qh5 {[%emt 0:03:33]} Re7 {[%emt 0:01:21]} 27. e6 {[%emt 0:06:49][%cal Re6f7]} f6 {[%emt 0:00:05]} 28. Qf5 {[%emt 0:00:03]} Rae8 {[%emt 0:00:51]} 29. Rfe2 {[%emt 0:00:55]} g6 {[%emt 0:00:47]} 30. Qf4 {[%emt 0:00:15]} Kg7 {[%emt 0:00:15]} 31. h4 {[%emt 0:00:52]} h5 {[%emt 0:00:39]} 32. Qd6 {[%emt 0:00:52]} Qc1 {[%emt 0:01:09]} (32... f5 $11 33. Rd4 Qc1) 33. Qd4 $14 {[%emt 0:00:18]} Rf8 $2 {[%emt 0:00:54]} (33... Kg8 $16 {might work better.}) 34. Qd6 $2 {[%emt 0:00:12]} (34. Rf4 $18) 34... Rfe8 {[%emt 0:00:05]} 35. Qd4 {[%emt 0:00:03]} (35. Qd3 $5 {[%cal Rd3d4]}) 35... Qh6 {[%emt 0:00:48][%mdl 8192]} (35... Rf8 $1 $11 {and Black has nothing to worry.}) 36. Kh2 $2 {[%emt 0:02:56]} (36. Rf2 $18 Kg8 37. Rxf6 (37. Qxf6 Qg7 $16)) 36... Qh8 $11 {[%emt 0:00:22] The position is equal.} 37. Rf4 {[%emt 0:01:54]} Qf8 {[%emt 0:00:06]} 38. Rfe4 {[%emt 0:00:11]} Kh7 {[%emt 0:00:12]} 39. Qe3 {[%emt 0:00:51]} f5 {[%emt 0:01:26]} 40. Re5 {[%emt 0:00:29]} Qf6 {[%emt 0:00:25]} 41. Rd2 {[%emt 0:11:01]} Kg7 {[%emt 0:12:36]} 42. Rd6 {[%emt 0:00:47]} f4 {[%emt 0:09:33]} 43. Qxf4 {[%emt 0:01:08]} Qxf4 {[%emt 0:00:04]} 44. gxf4 {[%emt 0:00:05][%mdl 4096] Endgame KRR-KRR} Kf6 {[%emt 0:00:21]} 45. Kg3 {[%emt 0:03:57]} Rxe6 {[%emt 0:00:13]} (45... a6 {keeps more tension.} 46. a4 a5 47. Rg5 Rxe6 48. f5 Rxd6 49. Rxg6+ Kxf5 50. Rg5+ Ke6) 46. Kf3 {[%emt 0:01:28]} b6 {[%emt 0:03:40]} 47. cxb6 {[%emt 0:03:27]} Rxd6 {[%emt 0:02:49]} 48. Rxe8 {[%emt 0:00:04] Threatening mate with b7.} axb6 {[%emt 0:00:03] KR-KR} 49. Rb8 {[%emt 0:00:42]} c5 {[%emt 0:00:13]} 50. Rf8+ {[%emt 0:00:42]} Kg7 {[%emt 0:00:30]} 51. Rb8 {[%emt 0:00:09]} Re6 {[%emt 0:00:55]} 52. a4 {[%emt 0:00:37]} Rd6 {[%emt 0:00:18]} 53. Ke3 {[%emt 0:02:04]} Kf6 {[%emt 0:00:13]} 54. Ra8 {[%emt 0:01:46]} Rd4 {[%emt 0:00:48]} 55. Ra6 {[%emt 0:00:24]} Kf5 {[%emt 0:00:23]} 56. Rxb6 {[%emt 0:00:27]} Rxc4 {[%emt 0:00:03]} 57. Rc6 {[%emt 0:00:44]} Rc3+ {[%emt 0:01:11]} 58. Kf2 {[%emt 0:01:13]} Rc4 {[%emt 0:02:08]} 59. Kg3 {[%emt 0:00:07]} Rc3+ {[%emt 0:00:27]} (59... Rxf4 60. Rxc5+ Ke4 61. Rc4+ Ke5 62. Rxf4 Kd5 63. a5 Ke6 64. a6) 60. Kf2 {[%emt 0:00:51]} c4 {[%emt 0:00:07]} 61. a5 {[%emt 0:00:22]} Rc2+ {[%emt 0:01:23]} 62. Kf3 {[%emt 0:00:23]} Rc3+ {[%emt 0:00:07]} 63. Kf2 {[%emt 0:00:04]} Ra3 {[%emt 0:00:31]} 64. Rxc4 {[%emt 0:00:08]} Rxa5 {[%emt 0:00:07]} 65. Rc6 {[%emt 0:00:31]} Ra4 {[%emt 0:01:27]} 66. Kg3 {[%emt 0:00:08]} Ra3+ {[%emt 0:00:31]} (66... Rxf4 {leads to mate.} 67. Rc5+ Ke4 68. Rc4+ Ke5 69. Rxf4 Ke6 70. Ra4 Kf6 71. Ra6+ Kf5 72. Rc6) 67. Kg2 {[%emt 0:00:08]} Re3 {[%emt 0:00:25]} 68. Ra6 {[%emt 0:01:27]} Re4 {[%emt 0:00:37]} 69. Kg3 {[%emt 0:00:08]} Re3+ {[%emt 0:00:04]} (69... Rxf4 {is a self mate.} 70. Ra5+ Ke4 71. Ra4+ Kf5 72. Rxf4+ Ke5 73. Ra4 Kf6 74. Ra6+ Kf5 75. Rc6) 70. Kg2 {[%emt 0:00:04]} Re6 {[%emt 0:01:45]} 71. Rxe6 {[%emt 0:01:52]} Kxe6 {[%emt 0:00:03] KPP-KPP} 72. Kf2 {[%emt 0:00:05]} Kd5 {[%emt 0:00:47] ( -> ...Ke4)} (72... Kf5 $5 73. Kf3 Kf6 $11) 73. Ke3 {[%emt 0:00:08]} Ke6 {[%emt 0:00:04]} 74. Ke4 {[%emt 0:00:11]} Kf6 {[%emt 0:00:05]} 75. Ke3 $1 {[%emt 0:00:05]} Ke6 {[%emt 0:00:08]} (75... Kf5 $5 76. Kf3 Kf6 $11) 76. Ke4 {[%emt 0:00:05]} Kf6 {[%emt 0:00:03]} 77. Ke3 {[%emt 0:00:06]} Ke6 (77... Kf5 $5 78. Kf3 Kf6 $11) 78. Ke4 {Weighted Error Value: White=0.27 (precise) /Black=0.26 (precise)} 1/2-1/2

[Event "93rd German Championship 2022"]
[Site "Magdeburg"]
[Date "2022.08.18"]
[Round "7.14"]
[White "Feuerstack, Aljoscha"]
[Black "Dobrikov, Marco"]
[Result "1/2-1/2"]
[ECO "B22"]
[WhiteElo "2473"]
[BlackElo "2223"]
[Annotator "TA"]
[PlyCount "129"]
[EventDate "2022.08.14"]
[EventType "swiss"]
[EventCountry "GER"]
[SourceTitle "playchess.com"]
[Source "ChessBase"]
[SourceQuality "1"]
[TimeControl "40/5400+30:1800+30"]

{[%evp 13,129,7,16,13,2,0,0,0,0,0,0,0,0,0,8,0,0,-6,-3,-3,16,0,0,-20,-14,-16,0,0,0,0,8,8,20,0,0,-75,-89,-80,-83,-80,-82,-97,-100,-113,-108,-163,-100,-93,-89,-97,-96,-100,-105,-98,-79,-84,-54,-58,-31,-45,-48,-48,-48,-42,-54,-43,-14,-34,-34,-34,-34,-34,-34,-34,0,0,0,0,0,0,0,0,0,0,0,0,0,0,0,0,0,0,0,0,0,0,0,0,0,0,0,0,0,0,0,0,0,0,0,0,0,0,0,0,0,0,0,0]} 1. e4 {[%emt 0:00:04][%cal Be2e4,Be4e5][%mdl 32]} c5 {[%emt 0:00:28]} 2. c3 {[%emt 0:00:06]} Nf6 {[%emt 0:00:21]} 3. e5 {[%emt 0:00:07]} Nd5 {[%emt 0:00:03]} 4. Nf3 {[%emt 0:00:10]} Nc6 {[%emt 0:00:34]} 5. Bc4 {[%emt 0:00:26]} Nb6 {[%emt 0:00:39]} 6. Bb3 {[%emt 0:00:07]} d5 {[%emt 0:01:11]} 7. exd6 {[%emt 0:00:22]} Qxd6 {[%emt 0:00:05]} 8. O-O {[%emt 0:00:08] B22: Sicilian: 2 c3.} Be6 {[%emt 0:00:53]} 9. Bxe6 {[%emt 0:00:39]} Qxe6 {[%emt 0:00:05]} 10. a4 {[%emt 0:00:06]} Qd7 {[%emt 0:02:54]} 11. a5 {[%emt 0:01:09]} Nd5 {[%emt 0:00:18]} 12. a6 {[%emt 0:00:42]} b6 {[%emt 0:00:09]} 13. d4 {[%emt 0:00:12]} cxd4 {[%emt 0:02:26]} 14. Nxd4 {[%emt 0:00:12] Nb5 is the strong threat.} e6 {[%emt 0:03:05]} 15. Qg4 {[%emt 0:02:14]} Nxd4 {[%emt 0:01:08]} 16. Qxd4 {[%emt 0:00:20] [#]} Nf6 $146 {[%emt 0:05:30]} ({Predecessor:} 16... Bc5 17. Qxg7 O-O-O 18. Qg3 Rhg8 19. Qf3 Qc6 20. Nd2 f5 21. Nb3 Rg4 22. h3 Re4 23. Nxc5 Qxc5 {1-0 (51) Yudin,S (2507)-Al Sayed,M (2484) St Petersburg 2018}) 17. Be3 {[%emt 0:08:46]} Bc5 {[%emt 0:01:44]} 18. Qe5 {[%emt 0:27:52]} Bxe3 {[%emt 0:12:45]} 19. Qxe3 {[%emt 0:00:36]} O-O {[%emt 0:00:11]} 20. Na3 {[%emt 0:09:16] Inhibits Qb5.} Rfd8 {[%emt 0:01:34]} 21. h3 {[%emt 0:02:03]} Qc6 {[%emt 0:17:34]} 22. Rfd1 {[%emt 0:03:34]} h6 {[%emt 0:01:25]} 23. Rd4 {[%emt 0:06:15]} Rd5 {[%emt 0:01:45]} 24. c4 {[%emt 0:07:51]} (24. Nc2 $11) 24... Rxd4 $17 {[%emt 0:06:38]} ({Reject} 24... Rg5 $6 25. g3 $11) 25. Qxd4 {[%emt 0:00:06]} Qa4 {[%emt 0:00:12]} 26. Rd1 {[%emt 0:07:27]} Qxa6 {[%emt 0:00:25]} 27. Rd3 {[%emt 0:00:38]} Qb7 {[%emt 0:01:30]} 28. b4 {[%emt 0:02:48]} a5 {[%emt 0:06:50]} 29. b5 {[%emt 0:02:49]} (29. bxa5 $17 {keeps fighting.} bxa5 30. Qc3) 29... Qc7 {[%emt 0:04:28]} (29... Ne4 $19 30. Qe3 a4) 30. Qd6 {[%emt 0:03:31]} Rc8 {[%emt 0:00:05]} 31. Qxc7 {[%emt 0:02:35]} Rxc7 {[%emt 0:00:01][%mdl 4096] Endgame KRN-KRN} 32. Rd8+ {[%emt 0:00:09]} Kh7 {[%emt 0:00:04]} 33. Rd6 {[%emt 0:00:55]} Nd7 {[%emt 0:00:02]} 34. c5 {[%emt 0:01:24]} bxc5 {[%emt 0:08:28]} 35. Nc4 {[%emt 0:06:05]} Rb7 {[%emt 0:02:16]} 36. Nxa5 {[%emt 0:02:49]} Rxb5 {[%emt 0:00:05]} 37. Rxd7 {[%emt 0:00:03] [#] Threatens to win with Nc4.} Rxa5 {[%emt 0:00:04]} 38. Rxf7 $15 {[%emt 0:00:04] KR-KR} Kg6 {[%emt 0:00:18]} 39. Rc7 {[%emt 0:01:08]} Ra1+ {[%emt 0:01:00]} 40. Kh2 {[%emt 0:00:05]} Rc1 {[%emt 0:00:09]} 41. Kg3 {[%emt 0:12:04]} c4 {[%emt 0:10:02][%cal Bc5c4,Bc4c3][%mdl 32]} 42. Kf3 {[%emt 0:05:41]} c3 {[%emt 0:00:10]} 43. Ke2 {[%emt 0:02:30]} Kf6 {[%emt 0:01:43]} 44. Kd3 {[%emt 0:02:17] Prevents c2. The position is equal.} Rh1 {[%emt 0:07:17]} 45. Ke2 {[%emt 0:00:50]} Rg1 {[%emt 0:00:46]} 46. g3 {[%emt 0:00:17]} Rc1 {[%emt 0:00:03]} 47. Kd3 {[%emt 0:00:55]} g5 {[%emt 0:00:08]} 48. Rxc3 {[%emt 0:03:27]} Rh1 {[%emt 0:00:11]} 49. Ke4 {[%emt 0:00:05]} Rxh3 {[%emt 0:00:18]} 50. Rc1 {[%emt 0:00:10]} h5 {[%emt 0:00:50]} ({But not} 50... Rh2 51. Rc8 $15) 51. Kf3 {[%emt 0:01:16]} Rh2 {[%emt 0:00:13]} 52. Ra1 {[%emt 0:01:27]} Kf5 {[%emt 0:01:57]} 53. Rb1 {[%emt 0:03:06]} h4 {[%emt 0:01:47] [#] aiming for ...g4+.} 54. Rb5+ {[%emt 0:00:36]} e5 {[%emt 0:03:23] Hoping for ...g4+.} 55. gxh4 {[%emt 0:04:16]} gxh4 {[%emt 0:00:29]} 56. Rb4 {[%emt 0:00:20]} h3 {[%emt 0:00:59]} 57. Rh4 {[%emt 0:00:31]} Rh1 {[%emt 0:01:06]} 58. Kg3 {[%emt 0:00:38]} Rg1+ {[%emt 0:00:06]} 59. Kxh3 {[%emt 0:01:17]} Rh1+ {[%emt 0:00:34]} 60. Kg3 {[%emt 0:00:04]} Rxh4 {[%emt 0:00:03]} 61. Kxh4 {[%emt 0:00:04]} Kf4 {[%emt 0:00:02] Strongly threatening ...e4.} 62. Kh5 {[%emt 0:00:11]} e4 {[%emt 0:00:12] White must now prevent ...Kf3.} 63. Kg6 {[%emt 0:00:07]} Kf3 {[%emt 0:00:05]} 64. Kf5 {[%emt 0:00:03]} Kxf2 {[%emt 0:00:03]} 65. Kxe4 {Weighted Error Value: White=0.07 (flawless) /Black=0.05 (flawless)} 1/2-1/2

[Event "93rd German Championship 2022"]
[Site "Magdeburg"]
[Date "2022.08.18"]
[Round "7.15"]
[White "Hourigan, Gerrit"]
[Black "Florstedt, Johannes"]
[Result "0-1"]
[ECO "B30"]
[WhiteElo "2306"]
[BlackElo "2368"]
[Annotator "TA"]
[PlyCount "166"]
[EventDate "2022.08.14"]
[EventType "swiss"]
[EventCountry "GER"]
[SourceTitle "playchess.com"]
[Source "ChessBase"]
[SourceQuality "1"]
[TimeControl "40/5400+30:1800+30"]

{[%evp 18,166,-15,-4,0,-14,-18,-25,-20,-56,-42,-57,-41,-41,-18,-17,-22,-88,-60,-87,-86,-75,-87,-67,-32,-48,-18,-39,-18,-33,32,37,35,16,32,0,18,0,0,0,0,-23,-23,-195,-67,-64,-35,-67,-31,-16,0,0,0,0,0,0,59,45,47,0,0,0,0,-47,-47,-47,-47,-86,-86,-86,-86,-86,-86,-86,-86,-86,-86,-106,-104,-171,-123,-130,-116,-116,-98,-116,-92,-94,-91,-91,-91,-91,-91,-91,-91,-91,-91,-91,-91,-91,-91,-339,-91,-91,-91,-91,-87,-91,-91,-91,-91,-91,-91,-91,0,-1148,-1126,-215,-128,-1040,-1147,-1040,-975,-1018,-797,-1104,-1057,-1057,-1064,-989,-907,-1046,-788,-1637,-5618,-1919,-1443,-12839,-12839,-12845,-12845,-12845,-12845,-12847,-12847,-12847,-12845,-12847,-12847,-12849,-12848]} 1. e4 {[%emt 0:00:01]} c5 {[%emt 0:03:07]} 2. Nf3 {[%emt 0:00:09]} Nc6 {[%emt 0:00:06]} 3. Nc3 {[%emt 0:03:29]} g6 {[%emt 0:00:09]} 4. g3 {[%emt 0:02:37]} Bg7 {[%emt 0:00:11]} 5. Bg2 {[%emt 0:00:42]} d6 {[%emt 0:01:41]} 6. O-O {[%emt 0:00:59]} e6 {[%emt 0:01:51]} 7. d3 {[%emt 0:06:47]} Nge7 {[%emt 0:00:26]} 8. Bf4 {[%emt 0:00:42]} e5 {[%emt 0:06:14]} 9. Be3 {[%emt 0:04:05]} O-O {[%emt 0:00:11]} 10. Nd2 {[%emt 0:01:10]} Be6 {[%emt 0:00:58] [#] B26: Closed Sicilian: 3 g3, lines with early Be3.} 11. a3 $146 {[%emt 0:07:17]} ({Predecessor:} 11. Nc4 a6 12. a4 Nd4 13. Bxd4 exd4 14. Nd5 Rb8 15. Nxe7+ Qxe7 16. Nb6 Rbe8 17. Qd2 h5 18. f4 {½-½ (36) Gonzalez Peguero,M (1666)-Barbier,A (1879) Chennai 2022}) 11... Qd7 {[%emt 0:01:48]} 12. Rb1 {[%emt 0:06:15]} b6 {[%emt 0:01:27] Black has an edge.} 13. f4 {[%emt 0:11:42]} exf4 {[%emt 0:00:32]} 14. Bxf4 {[%emt 0:00:45]} Ne5 {[%emt 0:00:17]} 15. Nf3 {[%emt 0:03:04]} Nxf3+ {[%emt 0:14:36]} (15... Bg4 {keeps more tension.} 16. Qe2 Rae8 17. Rbe1 h6) 16. Qxf3 {[%emt 0:02:16]} Rae8 {[%emt 0:00:15]} 17. Rfe1 {[%emt 0:11:02]} (17. Rbe1 $11) 17... Nc6 {[%emt 0:15:42]} 18. Nd5 {[%emt 0:10:45]} Bxd5 {[%emt 0:16:14]} 19. exd5 {[%emt 0:00:17]} Rxe1+ {[%emt 0:00:13]} 20. Rxe1 {[%emt 0:00:19]} Ne5 {[%emt 0:00:21]} 21. Qf1 {[%emt 0:04:22]} Qb5 {[%emt 0:01:18]} (21... Qa4 $5 {[%cal Ra4c2]} 22. c3 Qc2 23. Bxe5 Bxe5 $15) 22. Bc1 {[%emt 0:02:24]} h5 {[%emt 0:06:07]} 23. h3 {[%emt 0:01:29]} h4 {[%emt 0:03:39]} (23... f5 $15) 24. gxh4 $14 {[%emt 0:01:56]} Qa4 {[%emt 0:02:39][%csl LRc2,LRh4]} 25. Qf2 {[%emt 0:00:45][%cal Oh4h5]} f5 {[%emt 0:01:58]} 26. Bf4 {[%emt 0:05:38]} Bf6 {[%emt 0:02:18]} 27. Qg3 {[%emt 0:02:19][%cal Rf4e5]} Kf7 {[%emt 0:01:10]} 28. h5 {[%emt 0:03:55]} (28. Bxe5 Bxe5 29. Qg5 Qd4+ 30. Kh1 Rh8 $17) 28... gxh5 {[%emt 0:00:40] White must now prevent ...Rg8.} 29. b3 {[%emt 0:01:36]} (29. Bxe5 Bxe5 30. Qg5 Qf4 31. Qxf4 Bxf4 $15) 29... Qd4+ {[%emt 0:01:32]} 30. Qe3 $2 {[%emt 0:01:39] [#]} (30. Kh1 $11 {and White stays safe.}) 30... Ng6 {[%emt 0:00:30]} (30... Nxd3 $1 $19 {[%mdl 512]} 31. cxd3 Re8) 31. Bh6 $1 $15 {[%emt 0:02:03]} ({Don't go for} 31. Bxd6 $2 Qxe3+ 32. Rxe3 Bd4 33. Bxf8 (33. Kf2 $2 Re8 $19) 33... Bxe3+ 34. Kf1 Kxf8 $19) 31... Re8 {[%emt 0:11:47] Chess con chili.} 32. Qxd4 {[%emt 0:00:11]} Bxd4+ {[%emt 0:00:44]} 33. Kf1 {[%emt 0:00:06]} Rxe1+ {[%emt 0:01:48]} 34. Kxe1 $11 {[%emt 0:02:03][%mdl 4096] Endgame KBB-KBN} Nh4 {[%emt 0:01:55] Against Bf3} 35. Bh1 Kf6 {[%emt 0:00:18]} 36. Ke2 {[%emt 0:01:32]} Ke5 {[%emt 0:00:41]} ({Black should play} 36... Be5 $11) 37. c3 {[%emt 0:01:38]} Bg1 38. Bg5 (38. Bg7+ $14 {is more appropriate.} Kf4 39. Bf8) 38... Ng6 {[%emt 0:01:00]} 39. Kf3 {[%emt 0:01:27] Against Nf4. And now Kg2 would win.} Bh2 40. h4 (40. Ke3 $11 {feels stronger.} Bg1+ 41. Kf3) 40... Kxd5 $15 {[%emt 0:02:41]} 41. Ke3+ {[%emt 0:03:35]} Ke6 {[%emt 0:07:31]} 42. Bf3 {[%emt 0:02:57]} Bg3 {[%emt 0:00:45]} 43. Bxh5 {[%emt 0:01:28] [#]} Bxh4 $1 {[%emt 0:00:21]} 44. Bxg6 {[%emt 0:00:11]} Bxg5+ $17 {[%emt 0:00:06] KB-KB} 45. Ke2 {[%emt 0:08:32]} Bc1 {[%emt 0:01:08]} 46. a4 {[%emt 0:00:28]} Kf6 {[%emt 0:00:32]} 47. Bh7 {[%emt 0:03:10]} Bb2 {[%emt 0:00:07]} 48. c4 {[%emt 0:02:22]} (48. Kd2 $17) 48... Bc3 {[%emt 0:00:23]} (48... Ke5 $19 49. Bg6 Bc1) 49. Kf3 {[%emt 0:01:00]} Ke5 {[%emt 0:00:10]} 50. Bg6 {[%emt 0:00:21]} f4 {[%emt 0:01:04]} 51. Be4 {[%emt 0:00:55]} Bb2 {[%emt 0:00:21]} 52. Bg6 {[%emt 0:00:24]} Bc1 {[%emt 0:00:08]} 53. Be4 {[%emt 0:01:17]} Kd4 {[%emt 0:00:11]} 54. Bg6 {[%emt 0:00:27]} Be3 {[%emt 0:00:33]} 55. Bf5 {[%emt 0:00:58]} Kc3 {[%emt 0:00:32]} 56. Ke4 {[%emt 0:00:46]} Kxb3 {[%emt 0:00:21]} 57. Bd7 {[%emt 0:00:07]} Kb4 {[%emt 0:02:26]} 58. Be8 {[%emt 0:01:26]} Kc3 {[%emt 0:00:25]} 59. Bd7 $2 {[%emt 0:01:14]} (59. Bg6 $17) 59... Bc1 $2 {[%emt 0:01:47]} (59... Kd2 $19 {has better winning chances. ...Ke2 is the strong threat.} 60. Bg4 Kc3) 60. Bf5 {[%emt 0:00:32]} Kb3 {[%emt 0:05:22]} 61. Bd7 {[%emt 0:00:22]} Kc2 {[%emt 0:00:09][%cal Of4f3]} 62. Bf5 {[%emt 0:00:17]} Kd1 {[%emt 0:00:08]} 63. Kf3 {[%emt 0:01:18]} Be3 {[%emt 0:00:24]} 64. Be4 {[%emt 0:01:02]} Kd2 {[%emt 0:00:09] aiming for ...a5.} 65. Bf5 {[%emt 0:01:16]} Kd1 {[%emt 0:05:01]} ({Better is} 65... Kc3 $17 66. Ke4 Kb3) 66. Ke4 $2 {[%emt 0:00:55][%mdl 8192] [#] Black continues to play with concentration.} (66. Be4 $11) 66... Ke2 $1 $19 {[%emt 0:00:15]} 67. Bg4+ {[%emt 0:00:09] [#]} Kf2 $1 {[%emt 0:00:07]} 68. Bh5 $2 {[%emt 0:01:07][%mdl 8192]} (68. Bd1 $17) 68... Kg3 {[%emt 0:00:07] Black is clearly winning.} 69. Bd1 {[%emt 0:00:31]} Bd4 {[%emt 0:00:35]} 70. Be2 {[%emt 0:00:35]} Bf6 {[%emt 0:00:44]} 71. Bd1 {[%emt 0:00:24]} Bd8 {[%emt 0:00:22]} 72. Bh5 {[%emt 0:00:52]} d5+ {[%emt 0:03:45]} 73. cxd5 {[%emt 0:02:47]} Bc7 {[%emt 0:00:06]} 74. Bd1 {[%emt 0:01:44]} a6 {[%emt 0:00:58]} 75. d6 {[%emt 0:02:10]} Bxd6 {[%emt 0:00:06] Threatens to win with ...b5.} 76. Kd5 {[%emt 0:00:02]} Bc7 {[%emt 0:01:49] Hoping for ...f3.} 77. a5 {[%emt 0:01:18]} b5 {[%emt 0:00:40][%cal Bb6b5,Bb5b4,Bb4b3][%mdl 32]} 78. Kxc5 {[%emt 0:00:30]} Bxa5 {[%emt 0:00:08]} 79. d4 {[%emt 0:00:33]} f3 {[%emt 0:00:20][%cal Bf4f3,Bf3f2][%mdl 32]} 80. Kc6 {[%emt 0:00:24]} f2 {[%emt 0:00:12]} 81. Be2 {[%emt 0:00:06]} b4 {[%emt 0:00:33]} 82. Kb7 {[%emt 0:01:00]} b3 {[%emt 0:00:07]} 83. Kxa6 {[%emt 0:00:28]} Bd8 {[%emt 0:00:06] Weighted Error Value: White=0.28 (precise) /Black=0.22 (precise)} 0-1

[Event "93rd German Championship 2022"]
[Site "Magdeburg"]
[Date "2022.08.18"]
[Round "7.16"]
[White "Miller, Eduard"]
[Black "Cofmann, Veaceslav"]
[Result "1-0"]
[ECO "B01"]
[WhiteElo "2350"]
[BlackElo "2301"]
[Annotator "TA"]
[PlyCount "45"]
[EventDate "2022.08.14"]
[EventType "swiss"]
[EventCountry "GER"]
[SourceTitle "playchess.com"]
[Source "ChessBase"]
[SourceQuality "1"]
[TimeControl "40/5400+30:1800+30"]

{[%evp 12,45,52,57,53,50,60,35,112,102,123,115,416,424,453,454,526,486,611,602,604,594,691,676,619,660,746,738,831,607,923,918,1631,1630,1622,1616]} 1. e4 {[%emt 0:05:11]} d5 {[%emt 0:00:59]} 2. exd5 {[%emt 0:00:07]} Nf6 {[%emt 0:00:06]} 3. d4 {[%emt 0:04:23]} Nxd5 {[%emt 0:02:02]} 4. c4 {[%emt 0:00:39]} Nb6 {[%emt 0:00:38]} 5. Nf3 {[%emt 0:00:23]} g6 {[%emt 0:00:38]} 6. Nc3 {[%emt 0:05:02]} Bg7 {[%emt 0:00:21]} 7. c5 {[%emt 0:04:47]} N6d7 {[%emt 0:01:01] B01: Scandinavian Defence.} 8. Bg5 {[%emt 0:10:39]} O-O {[%emt 0:01:04]} 9. Bc4 {[%emt 0:02:58]} b6 {[%emt 0:01:39]} ({Black should try} 9... h6 $14 10. Be3 Nc6) 10. O-O $16 {[%emt 0:09:56] White is much more active.} Bb7 {[%emt 0:04:05]} 11. Re1 {[%emt 0:01:18] [#]} Nc6 $146 {[%emt 0:01:46][%mdl 8192] [#]} (11... Bf6 $16) ({Predecessor:} 11... Nf6 12. Ne5 Nc6 13. Qa4 Nxe5 14. dxe5 Nd5 15. c6 Nxc3 16. bxc3 Qe8 17. Bb5 Bc8 {1-0 (30) Kadric,D (2491)-Marcetic,P (2311) Neum 2014}) 12. d5 $18 {[%emt 0:11:48][%cal Bd4d5,Bd5c6][%mdl 32]} Nce5 {[%emt 0:01:33] White is clearly winning.} 13. c6 {[%emt 0:00:30]} Nxf3+ {[%emt 0:00:16]} 14. gxf3 {[%emt 0:02:47]} Bxc6 {[%emt 0:00:43]} 15. Bxe7 {[%emt 0:00:38]} Qc8 {[%emt 0:00:36]} 16. Bxf8 {[%emt 0:01:57]} Qxf8 {[%emt 0:00:28]} 17. dxc6 {[%emt 0:00:10]} Ne5 {[%emt 0:00:06]} 18. Bd5 {[%emt 0:03:20]} Qb4 {[%emt 0:00:18]} 19. Re3 {[%emt 0:07:27]} Qh4 {[%emt 0:01:02]} 20. Qa4 {[%emt 0:00:17]} Qh5 {[%emt 0:00:53]} 21. Rae1 {[%emt 0:00:41]} Rd8 {[%emt 0:01:08]} 22. Qf4 {[%emt 0:00:28][%cal Re3e5]} g5 {[%emt 0:01:48]} 23. Rxe5 {[%emt 0:00:10] Black got outplayed after the opening.  Weighted Error Value: White=0.24 (precise) /Black=0.73} 1-0